[Event "Indian Blitz Championship 2023"]
[Site "Nashik"]
[Date "2024.03.07"]
[Round "9.1"]
[White "Raja Rithvik R"]
[Black "Ghosh, Diptayan"]
[Result "1/2-1/2"]
[ECO "E06"]
[WhiteElo "2532"]
[BlackElo "2559"]
[Annotator "RC"]
[PlyCount "250"]
[EventDate "2024.03.07"]
[EventType "blitz"]
[EventCountry "IND"]
[SourceTitle "playchess.com"]
[Source "ChessBase"]
[SourceQuality "1"]
[TimeControl "180+2"]

1. d4 {[%emt 0:00:01]} Nf6 {[%emt 0:00:01]} 2. c4 {[%emt 0:00:01]} e6 {[%emt 0:00:01]} 3. Nf3 {[%emt 0:00:02]} d5 {[%emt 0:00:01]} 4. g3 {[%emt 0:00:01]} Be7 {[%emt 0:00:01]} 5. Bg2 {[%emt 0:03:07]} O-O {[%emt 0:00:02]} 6. O-O {[%emt 0:00:00]} a5 {[%emt 0:00:01]} 7. Qc2 {[%emt 0:00:00]} Nc6 {[%emt 0:00:01]} 8. a3 {[%emt 0:00:00]} dxc4 {[%emt 0:00:01]} 9. Qxc4 {[%emt 0:00:00]} a4 {[%emt 0:00:01]} 10. Nc3 {[%emt 0:00:00]} Bd7 {[%emt 0:00:02]} 11. Ne5 {[%emt 0:00:00]} Na5 {[%emt 0:00:11]} 12. Qd3 {[%emt 0:00:00]} Be8 {[%emt 0:00:02]} 13. Bf4 {[%emt 0:00:00]} Nd5 {[%emt 0:00:03]} 14. Rfd1 {[%emt 0:00:00]} f6 {[%emt 0:00:12]} 15. Nc4 {[%emt 0:00:00]} Bg6 {[%emt 0:00:09]} 16. Be4 {[%emt 0:00:00]} Nxc3 {[%emt 0:00:48]} 17. bxc3 {[%emt 0:00:00]} Bxe4 {[%emt 0:01:18]} 18. Qxe4 {[%emt 0:00:00]} Qd5 {[%emt 0:00:17]} 19. Qxd5 {[%emt 0:00:00]} exd5 {[%emt 0:00:01]} 20. Nxa5 {[%emt 0:00:00]} Rxa5 {[%emt 0:00:01]} 21. Bxc7 {[%emt 0:00:00]} Rb5 {[%emt 0:00:06]} 22. Rdb1 {[%emt 0:00:00]} Rxb1+ {[%emt 0:00:02]} 23. Rxb1 {[%emt 0:00:00]} Bxa3 {[%emt 0:00:01]} 24. Ra1 {[%emt 0:00:00]} Bb2 {[%emt 0:00:05]} 25. Rxa4 {[%emt 0:00:00]} Bxc3 {[%emt 0:00:01]} 26. Bb6 {[%emt 0:00:00]} Rc8 {[%emt 0:00:06]} 27. Ra7 {[%emt 0:00:00]} Rc4 {[%emt 0:00:01]} 28. e3 {[%emt 0:00:13]} Rb4 {[%emt 0:00:11]} 29. Rxb7 {[%emt 0:00:01]} Rb1+ {[%emt 0:00:04]} 30. Kg2 {[%emt 0:00:01]} h5 {[%emt 0:00:02]} 31. Rb8+ {[%emt 0:00:03]} Kh7 {[%emt 0:00:01]} 32. Bc7 {[%emt 0:00:02]} Rxb8 {[%emt 0:00:03]} 33. Bxb8 {[%emt 0:00:00]} Kg6 {[%emt 0:00:01]} 34. Kf3 {[%emt 0:00:06]} Kf5 {[%emt 0:00:01]} 35. h3 {[%emt 0:00:01]} Bb4 {[%emt 0:00:03]} 36. g4+ {[%emt 0:00:01]} hxg4+ {[%emt 0:00:01]} 37. hxg4+ {[%emt 0:00:00]} Ke6 {[%emt 0:00:01]} 38. Ba7 {[%emt 0:00:03]} g6 {[%emt 0:00:01]} 39. Bc5 {[%emt 0:00:07]} Ba5 {[%emt 0:00:01]} 40. Ke2 {[%emt 0:00:04]} f5 {[%emt 0:00:01]} 41. Kf3 {[%emt 0:00:01]} Bc7 {[%emt 0:00:01]} 42. Bb4 {[%emt 0:00:05]} Bb8 {[%emt 0:00:01]} 43. Ba5 {[%emt 0:00:03]} Bd6 {[%emt 0:00:01]} 44. Bd8 {[%emt 0:00:02]} Bb8 {[%emt 0:00:01]} 45. Bg5 {[%emt 0:00:01]} Bd6 {[%emt 0:00:01]} 46. Bf4 {[%emt 0:00:02]} Bb4 {[%emt 0:00:04]} 47. Be5 {[%emt 0:00:02]} Be1 {[%emt 0:00:01]} 48. Ke2 {[%emt 0:00:02]} Bb4 {[%emt 0:00:01]} 49. f3 {[%emt 0:00:03]} Ba5 {[%emt 0:00:03]} 50. Kf2 {[%emt 0:00:01]} Bb4 {[%emt 0:00:03]} 51. Kg3 {[%emt 0:00:02]} Be1+ {[%emt 0:00:01]} 52. Kh3 {[%emt 0:00:11]} Kf7 {[%emt 0:00:04]} 53. Bg3 {[%emt 0:00:03]} Bd2 {[%emt 0:00:01]} 54. Bf2 {[%emt 0:00:02]} Bb4 {[%emt 0:00:03]} 55. Bg3 {[%emt 0:00:06]} Bd2 {[%emt 0:00:00]} 56. Bf4 {[%emt 0:00:02]} Be1 {[%emt 0:00:01]} 57. Bg5 {[%emt 0:00:03]} Ke6 {[%emt 0:00:02]} 58. Bh4 {[%emt 0:00:02]} Bd2 {[%emt 0:00:00]} 59. Bf2 {[%emt 0:00:01]} Bb4 {[%emt 0:00:02]} 60. Kh4 {[%emt 0:00:07]} Be7+ {[%emt 0:00:01]} 61. Kg3 {[%emt 0:00:01]} Bd6+ {[%emt 0:00:00]} 62. Kg2 {[%emt 0:00:01]} Bb4 {[%emt 0:00:02]} 63. Bg3 {[%emt 0:00:02]} Bd2 {[%emt 0:00:02]} 64. Kf2 {[%emt 0:00:00]} Bb4 {[%emt 0:00:01]} 65. Ke2 {[%emt 0:00:02]} Ba5 {[%emt 0:00:02]} 66. Kd3 {[%emt 0:00:00]} Bd8 {[%emt 0:00:02]} 67. e4 {[%emt 0:00:03]} fxe4+ {[%emt 0:00:16]} 68. fxe4 {[%emt 0:00:01]} Bg5 {[%emt 0:00:04]} 69. e5 {[%emt 0:00:05]} Bd8 {[%emt 0:00:01]} 70. Bf2 {[%emt 0:00:01]} Ba5 {[%emt 0:00:01]} 71. Kc2 {[%emt 0:00:02]} Bb4 {[%emt 0:00:03]} 72. Be3 {[%emt 0:00:01]} Ba5 {[%emt 0:00:01]} 73. Kb3 {[%emt 0:00:01]} Be1 {[%emt 0:00:01]} 74. Ka4 {[%emt 0:00:00]} Bh4 {[%emt 0:00:03]} 75. Kb5 {[%emt 0:00:01]} Be7 {[%emt 0:00:02]} 76. Kc6 {[%emt 0:00:01]} Ba3 {[%emt 0:00:02]} 77. Kc7 {[%emt 0:00:03]} Bb4 {[%emt 0:00:01]} 78. Kd8 {[%emt 0:00:02]} Ba3 {[%emt 0:00:01]} 79. Ke8 {[%emt 0:00:01]} Bb4 {[%emt 0:00:01]} 80. Bh6 {[%emt 0:00:05]} Bc3 {[%emt 0:00:01]} 81. Be3 {[%emt 0:00:01]} Bb4 {[%emt 0:00:00]} 82. Bf2 {[%emt 0:00:04]} Ba3 {[%emt 0:00:02]} 83. Be1 {[%emt 0:00:03]} Bb2 {[%emt 0:00:01]} 84. Bf2 {[%emt 0:00:01]} Ba3 {[%emt 0:00:00]} 85. Be3 {[%emt 0:00:05]} Bb4 {[%emt 0:00:02]} 86. Kd8 {[%emt 0:00:01]} Ba3 {[%emt 0:00:01]} 87. Kc7 {[%emt 0:00:01]} Bb4 {[%emt 0:00:01]} 88. Kc6 {[%emt 0:00:01]} Ba3 {[%emt 0:00:01]} 89. Kb5 {[%emt 0:00:01]} Be7 {[%emt 0:00:03]} 90. Ka4 {[%emt 0:00:01]} Bf8 {[%emt 0:00:01]} 91. Kb3 {[%emt 0:00:00]} Be7 {[%emt 0:00:00]} 92. Kc3 {[%emt 0:00:01]} Ba3 {[%emt 0:00:01]} 93. Kd3 {[%emt 0:00:01]} Be7 {[%emt 0:00:02]} 94. Ke2 {[%emt 0:00:01]} Bd8 {[%emt 0:00:03]} 95. Kf3 {[%emt 0:00:01]} Be7 {[%emt 0:00:00]} 96. Bh6 {[%emt 0:00:03]} Bb4 {[%emt 0:00:02]} 97. Bc1 {[%emt 0:00:06]} Bc3 {[%emt 0:00:03]} 98. Ke3 {[%emt 0:00:01]} Bb4 {[%emt 0:00:00]} 99. Kd3 {[%emt 0:00:01]} Be7 {[%emt 0:00:02]} 100. Kc3 {[%emt 0:00:01]} Bf8 {[%emt 0:00:02]} 101. Kb3 {[%emt 0:00:01]} Be7 {[%emt 0:00:07]} 102. Ba3 {[%emt 0:00:01]} Bg5 {[%emt 0:00:01]} 103. Bc5 {[%emt 0:00:01]} Kd7 {[%emt 0:00:18]} 104. Ka4 {[%emt 0:00:04]} Ke6 {[%emt 0:00:04]} 105. Kb5 {[%emt 0:00:01]} Bd8 {[%emt 0:00:03]} 106. Kc6 {[%emt 0:00:01]} Ba5 {[%emt 0:00:01]} 107. Kb7 {[%emt 0:00:07]} Kd7 {[%emt 0:00:02]} 108. Ka6 {[%emt 0:00:10]} Bc3 {[%emt 0:00:01]} 109. Kb5 {[%emt 0:00:01]} Ke6 {[%emt 0:00:02]} 110. Kb6 {[%emt 0:00:02]} Kd7 {[%emt 0:00:01]} 111. Kb5 {[%emt 0:00:04]} Ke6 {[%emt 0:00:02]} 112. Kc6 {[%emt 0:00:02]} Ba5 {[%emt 0:00:01]} 113. Bb6 {[%emt 0:00:02]} Bb4 {[%emt 0:00:01]} 114. Kc7 {[%emt 0:00:01]} Ba3 {[%emt 0:00:04]} 115. Kd8 {[%emt 0:00:02]} Bb4 {[%emt 0:00:01]} 116. Ke8 {[%emt 0:00:03]} Ba3 {[%emt 0:00:01]} 117. Bc5 {[%emt 0:00:05]} Bxc5 {[%emt 0:00:07]} 118. dxc5 {[%emt 0:00:01]} Kxe5 {[%emt 0:00:01]} 119. Ke7 {[%emt 0:00:02]} d4 {[%emt 0:00:01]} 120. c6 {[%emt 0:00:01]} d3 {[%emt 0:00:00]} 121. c7 {[%emt 0:00:00]} d2 {[%emt 0:00:01]} 122. c8=Q {[%emt 0:00:11]} d1=Q {[%emt 0:00:13]} 123. Qe6+ {[%emt 0:00:00]} Kf4 {[%emt 0:00:00]} 124. Qxg6 {[%emt 0:00:00]} Qxg4 {[%emt 0:00:00]} 125. Qxg4+ {[%emt 0:00:01]} Kxg4 {[%emt 0:00:06]} 1/2-1/2

[Event "Indian Blitz Championship 2023"]
[Site "Nashik"]
[Date "2024.03.07"]
[Round "9.2"]
[White "Mitrabha, Guha"]
[Black "Ayush Sharma"]
[Result "1-0"]
[ECO "A33"]
[WhiteElo "2526"]
[BlackElo "2311"]
[Annotator "TA"]
[PlyCount "101"]
[EventDate "2024.03.07"]
[EventType "blitz"]
[EventCountry "IND"]
[SourceTitle "playchess.com"]
[Source "ChessBase"]
[SourceQuality "1"]
[TimeControl "180+2"]

{[%evp 25,101,51,49,32,35,18,21,7,13,0,0,0,0,8,3,6,8,10,16,15,23,25,42,10,26,23,22,0,0,0,24,0,8,7,134,10,10,10,18,0,15,8,8,8,15,0,0,0,0,0,0,0,8,0,9,-28,0,0,0,0,0,0,21,0,0,0,195,206,196,195,200,0,152,152,152,-745,-716,-692]} 1. Nf3 {[%emt 0:00:01]} Nf6 {[%emt 0:00:01]} 2. c4 {[%emt 0:00:01]} e6 {[%emt 0:00:01]} 3. g3 {[%emt 0:00:01]} c5 {[%emt 0:00:05]} 4. Bg2 {[%emt 0:00:02]} Nc6 {[%emt 0:00:02]} 5. O-O {[%emt 0:00:02]} Be7 {[%emt 0:00:05]} 6. d4 {[%emt 0:00:11]} cxd4 {[%emt 0:00:04]} 7. Nxd4 {[%emt 0:00:01]} O-O {[%emt 0:00:04]} 8. Nc3 {[%emt 0:00:03]} a6 {[%emt 0:00:30]} 9. b3 {[%emt 0:00:01]} Qc7 {[%emt 0:00:06]} 10. Bb2 {[%emt 0:00:01]} d6 {[%emt 0:00:02]} 11. Rc1 {[%emt 0:00:01]} Nxd4 {[%emt 0:00:21]} 12. Qxd4 {[%emt 0:00:02]} Bd7 {[%emt 0:00:01]} 13. Rfd1 {[%emt 0:00:01]} Rfd8 {[%emt 0:00:03]} 14. h4 {[%emt 0:00:29]} Rac8 {[%emt 0:00:03]} 15. Bf3 {[%emt 0:00:06]} Qb8 {[%emt 0:00:14][%cal Od6d5]} 16. Ne4 {[%emt 0:00:41][%cal Re4d6] Die Stellung ist ausgeglichen.} Bc6 {[%emt 0:00:07]} 17. Kg2 {[%emt 0:00:14]} d5 {[%emt 0:00:05]} 18. cxd5 {[%emt 0:00:08]} Rxd5 {[%emt 0:00:05]} 19. Qe3 {[%emt 0:00:00] Nxf6+ ist eine echte Drohung.} Rxd1 {[%emt 0:00:33]} 20. Rxd1 {[%emt 0:00:01]} Nxe4 {[%emt 0:00:11]} 21. Bxe4 {[%emt 0:00:02]} Bc5 {[%emt 0:00:02]} 22. Qf3 $40 {[%emt 0:00:06][%mdl 128] und nun wäre Bxc6 stark für Weiss. Weiss greift an.} (22. Qxc5 $2 {verliert.} Bxe4+ 23. f3 Bxf3+ (23... Rxc5 $2 24. fxe4 Rc2 25. Be5 $19) 24. Kxf3 Rxc5 $19) 22... Bxe4 {[%emt 0:00:05]} 23. Qxe4 {[%emt 0:00:01]} Qc7 {[%emt 0:00:03] Es drohte Rd7} 24. Rc1 {[%emt 0:00:10] Droht stark b4.} Qc6 {[%emt 0:00:15]} 25. Qxc6 {[%emt 0:00:01]} Rxc6 $11 {[%emt 0:00:01][%mdl 4096] Endspiel. KRB-KRB} 26. Rd1 {[%emt 0:00:02]} Rd6 {[%emt 0:00:00]} 27. Rc1 {[%emt 0:00:06]} Rc6 {[%emt 0:00:01]} 28. Kf3 {[%emt 0:00:09]} h5 {[%emt 0:00:05]} 29. e3 {[%emt 0:00:07]} Kf8 {[%emt 0:00:07] [#]} (29... f6 $11 {bleibt in der Remisbreite.}) 30. Ke4 {[%emt 0:00:20] Weiß steht aktiver.} (30. Rxc5 $1 $16 Rxc5 31. Ba3) 30... Bd6 {[%emt 0:00:22]} 31. Rxc6 {[%emt 0:00:12]} bxc6 {[%emt 0:00:01] KB-KB} 32. Kd3 {[%emt 0:00:04]} g6 {[%emt 0:00:05]} 33. Kc4 {[%emt 0:00:01]} Ke7 {[%emt 0:00:02]} 34. Bd4 {[%emt 0:00:04] Zielt auf Bc5 ab.} Kd7 {[%emt 0:00:02]} 35. Bc5 {[%emt 0:00:02] Droht Bxd6 und aus.} Bc7 {[%emt 0:00:03]} 36. Kd4 {[%emt 0:00:05]} Ba5 {[%emt 0:00:09] Und ...Be1 würde nun gewinnen.} 37. Ke4 {[%emt 0:00:02]} Be1 {[%emt 0:00:02]} 38. Kf3 {[%emt 0:00:02]} Bc3 {[%emt 0:00:05]} 39. Ke2 {[%emt 0:00:06]} f5 {[%emt 0:00:03]} 40. Kf3 {[%emt 0:00:05]} Bf6 {[%emt 0:00:02]} 41. e4 {[%emt 0:00:04]} Bc3 {[%emt 0:00:02]} 42. Ke3 {[%emt 0:00:02]} Bb2 {[%emt 0:00:03]} 43. Bd4 {[%emt 0:00:04]} Bc1+ {[%emt 0:00:01]} 44. Kf3 {[%emt 0:00:01]} Kd6 {[%emt 0:00:01]} 45. Be3 {[%emt 0:00:08]} Bxe3 {[%emt 0:00:03]} (45... Ba3 $11 {und Schwarz muss sich keine Sorgen machen.}) 46. Kxe3 {[%emt 0:00:01] KP-KP} Ke5 {[%emt 0:00:03] [#]} 47. exf5 {[%emt 0:00:05]} exf5 {[%emt 0:00:01]} 48. Kd3 $2 {[%emt 0:00:08]} ({Besser ist} 48. Kf3 $18) 48... Kd5 $2 {[%emt 0:00:02]} (48... f4 $11 49. b4 Kf5) 49. b4 $16 {[%emt 0:00:08]} c5 {[%emt 0:00:02]} 50. Kc3 {[%emt 0:00:01]} (50. bxc5 $16 Kxc5 51. Ke3) 50... cxb4+ $19 {[%emt 0:00:06]} 51. Kxb4 {[%mdl 32768] Gewichteter Fehlerwert: Weiß=0.39/Schwarz=0.26 (präzise) .  Verlustzug:     	Weiß=1     	Schwarz=1     Gewinn verpasst:   	Weiß=1     	---        Fehler:       	Weiß=1     	Schwarz=2     Ungenau:       	Weiß=2     	Schwarz=1     OK:         	Weiß=8     	Schwarz=13    Bester:       	Weiß=2     	Schwarz=2    . Fehler vom Sensorbrett (Ke4/e5)?} 1-0

[Event "Indian Blitz Championship 2023"]
[Site "Nashik"]
[Date "2024.03.07"]
[Round "9.3"]
[White "Vaz, Ethan"]
[Black "Ravi, Teja S."]
[Result "1/2-1/2"]
[ECO "B00"]
[WhiteElo "2409"]
[BlackElo "2437"]
[Annotator "TA"]
[PlyCount "122"]
[EventDate "2024.03.07"]
[EventType "blitz"]
[EventCountry "IND"]
[SourceTitle "playchess.com"]
[Source "ChessBase"]
[SourceQuality "1"]
[TimeControl "180+2"]

{[%evp 9,122,29,11,6,18,1,10,-29,6,0,13,0,0,0,14,29,16,28,43,27,25,11,2,6,16,0,16,0,45,34,52,16,52,40,47,51,49,0,0,-25,-28,-31,-24,-11,-8,-89,-80,-1123,-841,-816,-818,-820,-814,-29992,-426,-420,-420,-425,-407,-387,-312,-272,-152,-381,-372,-346,-235,-242,-237,-243,-193,-247,-175,-189,-146,-158,0,-122,-40,-40,-40,-180,-51,-118,-112,-252,-269,-293,-50,-50,-50,-50,-50,-50,-50,-51,-62,-97,-37,-37,-37,-37,0,0,0,0,0,0,0,0,0,0,0,0,0]} 1. e4 {[%emt 0:00:01]} Nc6 {[%emt 0:00:01]} 2. d4 {[%emt 0:00:02]} d5 {[%emt 0:00:00]} 3. e5 {[%emt 0:00:01]} Bf5 {[%emt 0:00:01]} 4. Nf3 {[%emt 0:00:09]} e6 {[%emt 0:00:02]} 5. Bd3 {[%emt 0:00:12]} Bxd3 {[%emt 0:00:01]} 6. Qxd3 {[%emt 0:00:01]} Qd7 {[%emt 0:00:00]} 7. a3 {[%emt 0:00:17]} f6 {[%emt 0:00:03]} 8. Bf4 {[%emt 0:00:20][%cal Bc1f4,Bf4g3,Bg3e5][%mdl 32]} Nge7 {[%emt 0:00:16][%cal Bg8e7,Be7g6,Bg6e5,Be5c6,Bc6a5][%mdl 32]} 9. Bg3 {[%emt 0:00:35]} fxe5 {[%emt 0:00:18]} 10. Nxe5 {[%emt 0:00:02]} Nxe5 {[%emt 0:00:02]} 11. Bxe5 {[%emt 0:00:01]} Ng6 {[%emt 0:00:01]} 12. Bg3 {[%emt 0:00:06]} Bd6 {[%emt 0:00:01]} 13. Nd2 {[%emt 0:00:17]} O-O-O {[%emt 0:00:08]} 14. O-O {[%emt 0:00:07]} Bxg3 {[%emt 0:00:10]} 15. hxg3 {[%emt 0:00:06]} e5 {[%emt 0:00:01]} 16. dxe5 {[%emt 0:00:04]} Nxe5 {[%emt 0:00:01]} 17. Qe3 {[%emt 0:00:11][%csl LRa7,LRe5]} Nc6 {[%emt 0:00:01]} 18. b4 {[%emt 0:00:02][%cal Bb2b4,Bb4b5][%mdl 32]} Kb8 {[%emt 0:00:07]} 19. b5 {[%emt 0:00:07]} Na5 {[%emt 0:00:08]} 20. Rab1 {[%emt 0:00:01]} h5 {[%emt 0:00:04]} 21. Qc3 {[%emt 0:00:05]} b6 {[%emt 0:00:03]} 22. Nf3 {[%emt 0:00:02]} g5 {[%emt 0:00:35]} 23. Nxg5 {[%emt 0:00:14]} (23. Rb4 $14) 23... h4 $11 {[%emt 0:00:00]} 24. Rfe1 {[%emt 0:00:08]} hxg3 {[%emt 0:00:12]} 25. Qxg3 {[%emt 0:00:01]} Rdg8 {[%emt 0:00:05]} 26. f4 {[%emt 0:00:08]} Nc4 {[%emt 0:00:07][%mdl 1024] Black has compensation.} 27. a4 {[%emt 0:00:05]} (27. Rb3 $1 $11) 27... Qd6 $36 {[%emt 0:00:07][%mdl 2048] Black has strong initiative.} 28. Rbd1 $2 {[%emt 0:00:03][%mdl 8192]} (28. Re2 $17) 28... Qc5+ {[%emt 0:00:02]} 29. Kf1 {[%emt 0:00:20]} Rh1+ {[%emt 0:00:08]} 30. Ke2 {[%emt 0:00:00]} Re8+ {[%emt 0:00:13]} 31. Kd3 {[%emt 0:00:03] [#]} Re3+ {[%emt 0:00:46]} 32. Qxe3 $19 {[%emt 0:00:07]} Nxe3 {[%emt 0:00:03]} 33. Rxh1 {[%emt 0:00:01]} Nxd1 {[%emt 0:00:03]} (33... Qxc2+ $2 34. Kxe3 Qxg2 35. Nf3 $18) (33... Nxc2 34. Rc1 Qc4+ 35. Kd2 Qxf4+ 36. Kxc2 $19) 34. Rxd1 {[%emt 0:00:01][%mdl 4096] Endgame. KQ-KRN} Qc4+ {[%emt 0:00:00]} 35. Ke3 {[%emt 0:00:01]} Qxc2 {[%emt 0:00:03]} ({But not} 35... Qxa4 36. Rxd5 Qxc2 37. Kf3 $17) (35... a5 $1 $19 36. bxa6 c6 (36... Qxc2 $2 37. Rxd5 Qxg2 38. Nf3 $19)) 36. Rd2 $2 {[%emt 0:00:05]} (36. Rxd5 $17 Qxa4 (36... Qxg2 $2 37. Rd4 $19) 37. Ne6) 36... Qb3+ {[%emt 0:00:02]} ({Not} 36... Qxa4 37. Rxd5 Qa2 38. Ke4 $19) 37. Rd3 {[%emt 0:00:02]} Qxa4 {[%emt 0:00:01]} 38. Rxd5 {[%emt 0:00:01]} Qb3+ {[%emt 0:00:02]} 39. Ke4 {[%emt 0:00:01]} Qc2+ {[%emt 0:00:01]} 40. Ke5 {[%emt 0:00:03]} (40. Kf3 {might work better.}) 40... Qxg2 {[%emt 0:00:02][%cal Oa7a6]} 41. Ne6 {[%emt 0:00:02]} Qe2+ {[%emt 0:00:03]} 42. Kf6 {[%emt 0:00:01]} a6 $2 {[%emt 0:00:04]} (42... Qc4 $1 $17 {[%cal Rc4d5]} 43. Re5 Qb4) 43. Rd8+ {[%emt 0:00:06]} (43. f5 $1 $11 {keeps the balance.}) 43... Kb7 {[%emt 0:00:01]} ({Black should try} 43... Ka7 $1 $17 44. f5 Qh5 (44... Qxb5 45. Nxc7 Qb1 46. Rd7 $17) (44... axb5 45. Ke7 $11) 45. bxa6 c5 (45... Kxa6 46. Nxc7+ Kb7 47. Ne6 $17)) 44. bxa6+ $15 {[%emt 0:00:01]} Qxa6 {[%emt 0:00:02]} 45. Rd7 {[%emt 0:00:01] [#]} (45. f5 $1 $15) 45... Qa1+ {[%emt 0:00:04]} ({Better is} 45... Kc6 $1 $19 {[%cal Rc6d7]} 46. Rxc7+ Kd6) 46. Kf7 {[%emt 0:00:01] [#]} (46. Ke7 $15) 46... b5 $1 $17 {[%emt 0:00:04] Threatens to win with ...b4.} 47. Rxc7+ {[%emt 0:00:02]} (47. f5 $17) 47... Kb6 $19 {[%emt 0:00:01] And now ...b4 would win.} 48. Rc8 {[%emt 0:00:03]} Qb1 {[%emt 0:00:07] Against f5} (48... Qa7+ $19 49. Rc7 Qa3) 49. Ke7 $15 {[%emt 0:00:05]} Qh7+ {[%emt 0:00:04]} 50. Kd6 {[%emt 0:00:01]} Qd3+ {[%emt 0:00:00]} 51. Ke5 {[%emt 0:00:03]} Qe2+ {[%emt 0:00:01]} 52. Kd6 {[%emt 0:00:01]} Qd1+ {[%emt 0:00:03]} 53. Ke5 {[%emt 0:00:01]} b4 {[%emt 0:00:01]} (53... Qe1+ $17 54. Kd6 Qe4 55. Rb8+ Ka5) 54. Rb8+ {[%emt 0:00:01]} Ka5 {[%emt 0:00:03]} 55. Nd4 {[%emt 0:00:01] Against Qe2+} Qe1+ {[%emt 0:00:01]} 56. Kd5 {[%emt 0:00:02] The position is equal.} Qh1+ {[%emt 0:00:02]} 57. Kc5 {[%emt 0:00:04]} Qc1+ {[%emt 0:00:02]} 58. Kd5 {[%emt 0:00:02] White threatens Nb3+ and mate.} Qxf4 {[%emt 0:00:04]} 59. Nc6+ {[%emt 0:00:01]} Ka4 {[%emt 0:00:08][%cal Of4b8] Strongly threatening ...Qxb8!} 60. Rxb4+ {[%emt 0:00:01]} Qxb4 {[%emt 0:00:02]} 61. Nxb4 {[%emt 0:00:01]} Kxb4 {[%emt 0:00:06] Weighted Error Value: White=0.40/Black=0.48.  Loses game:     	White=2     	---        Missed win:     	---       	Black=1      Mistake:       	White=7     	Black=5      Inaccurate:     	White=3     	Black=5      OK:         	White=20    	Black=13     Best:        	White=8     	Black=2      Strong:       	---       	Black=1} 1/2-1/2

[Event "Indian Blitz Championship 2023"]
[Site "Nashik"]
[Date "2024.03.07"]
[Round "9.4"]
[White "Aakash Sharadchandra, Dalvi"]
[Black "Aronyak Ghosh"]
[Result "0-1"]
[ECO "E15"]
[WhiteElo "2291"]
[BlackElo "2517"]
[Annotator "TA"]
[PlyCount "76"]
[EventDate "2024.03.07"]
[EventType "blitz"]
[EventCountry "IND"]
[SourceTitle "playchess.com"]
[Source "ChessBase"]
[SourceQuality "1"]
[TimeControl "180+2"]

{[%evp 19,76,2,17,12,37,15,22,23,14,12,19,0,0,-20,26,6,10,-6,16,0,8,10,15,-72,-75,-113,-103,-156,-128,-127,-116,-127,-124,-224,-181,-190,-127,-130,-98,-165,-174,-163,-148,-250,-213,-243,-233,-604,-604,-648,-648,-820,-808,-2631,-1097,-29980,-29979,-29998,-29999]} 1. d4 {[%emt 0:00:01]} Nf6 {[%emt 0:00:02]} 2. c4 {[%emt 0:00:01]} e6 {[%emt 0:00:02]} 3. Nf3 {[%emt 0:00:01]} b6 {[%emt 0:00:01]} 4. g3 {[%emt 0:00:01]} Ba6 {[%emt 0:00:02]} 5. b3 {[%emt 0:00:02]} Bb4+ {[%emt 0:00:02]} 6. Bd2 {[%emt 0:00:01]} Be7 {[%emt 0:00:02]} 7. Nc3 {[%emt 0:00:01]} d5 {[%emt 0:00:01]} 8. cxd5 {[%emt 0:00:01]} exd5 {[%emt 0:00:02]} 9. Bg2 {[%emt 0:00:01]} O-O {[%emt 0:00:02]} 10. O-O {[%emt 0:00:02]} Re8 {[%emt 0:00:05]} 11. a3 {[%emt 0:00:02]} Bd6 {[%emt 0:00:12]} 12. b4 {[%emt 0:00:06][%cal Of3e5]} c6 {[%emt 0:00:12]} 13. Bg5 {[%emt 0:00:17] Die Stellung ist ausgeglichen.} Nbd7 {[%emt 0:00:06]} 14. Re1 {[%emt 0:00:20][%cal Oe2e4]} h6 {[%emt 0:00:04]} 15. Bxf6 {[%emt 0:00:03]} Nxf6 {[%emt 0:00:04]} 16. e3 {[%emt 0:00:13]} Bc8 {[%emt 0:00:22]} (16... Bb7 {kam in Betracht.}) 17. Qb3 {[%emt 0:00:04]} Be6 {[%emt 0:00:04]} 18. Qb2 {[%emt 0:00:11]} Nd7 {[%emt 0:00:12][%cal Bf6d7,Bd7b6,Bb6c4][%mdl 32]} 19. Red1 {[%emt 0:00:02]} b5 {[%emt 0:00:13]} 20. e4 {[%emt 0:00:17]} Nb6 {[%emt 0:00:02]} 21. e5 {[%emt 0:00:02]} (21. exd5 $11 Bxd5 22. Qc2) 21... Bf8 {[%emt 0:00:02]} 22. Ne1 {[%emt 0:00:09]} Nc4 {[%emt 0:00:06]} 23. Qe2 {[%emt 0:00:02]} (23. Qb3 $142) 23... a5 {[%emt 0:00:04]} 24. Nd3 {[%emt 0:00:02]} Qb6 {[%emt 0:00:05] [#] Und ...axb4 würde nun gewinnen.} 25. Nc5 {[%emt 0:00:07]} Bxc5 {[%emt 0:00:14]} 26. dxc5 {[%emt 0:00:02]} (26. bxc5 $17 Qd8 27. Rdc1) 26... Qc7 {[%emt 0:00:02]} 27. f4 {[%emt 0:00:02]} Bf5 {[%emt 0:00:05]} (27... Ra6 $19 28. h3 Rea8) 28. Qf2 $17 {[%emt 0:00:10]} Ra7 {[%emt 0:00:05]} 29. Bf1 {[%emt 0:00:18]} (29. Bxd5 $17 {ist eine bessere Verteidigung.} axb4 (29... cxd5 30. Nxb5 Qb8 31. Nxa7 $16) 30. Bxc4 bxc3 31. Bb3) 29... axb4 $19 {[%emt 0:00:28]} 30. axb4 {[%emt 0:00:01] [#]} Rea8 $1 {[%emt 0:00:00]} 31. Rxa7 {[%emt 0:00:03]} (31. Rac1 $17) 31... Qxa7 {[%emt 0:00:02]} 32. Bxc4 {[%emt 0:00:09]} dxc4 {[%emt 0:00:11]} 33. Kg2 $2 {[%emt 0:01:04]} (33. Qb2) 33... Qa3 {[%emt 0:00:03][%csl LRb4,LRc3]} 34. Qd4 {[%emt 0:00:02] Weiss ist schwach auf den weissen Feldern} Qxb4 {[%emt 0:00:06]} 35. h3 {[%emt 0:00:02]} Ra3 {[%emt 0:00:09]} 36. Ne4 {[%emt 0:00:07]} Ra2+ {[%emt 0:00:04]} (36... Qb3 $142 37. Nc3 Qxc3 38. Qxc3 Be4+ (38... Rxc3 $2 39. g4 $19) 39. Kf2 Rxc3) 37. Kh1 {[%emt 0:00:02]} Qb3 {[%emt 0:00:12]} (37... Bxe4+ $2 38. Qxe4 Rd2 (38... Qxc5 $2 {ist das falsche Schlagen.} 39. Rd8+ $18) 39. Rxd2 Qxd2 40. e6 fxe6 (40... Qc1+ 41. Kg2 $17) 41. Qxe6+ Kf8 42. Qf5+ Ke7 (42... Kg8 $2 43. Qc8+ Kf7 44. Qc7+ Kf8 45. Qb8+ Ke7 46. Qe5+ Kd7 47. Qxg7+ Kc8 48. Qxh6 $19) 43. Qe5+ Kd7 44. Qxg7+ Kc8 45. Qxh6 $19) 38. Re1 {[%emt 0:00:04]} Qf3+ {[%emt 0:00:01] Gewichteter Fehlerwert: Weiß=0.92/Schwarz=0.26 (präzise) .  Fehler:       	Weiß=6     	Schwarz=2     Ungenau:       	Weiß=1     	---        OK:         	Weiß=4     	Schwarz=5     Bester:       	Weiß=1     	Schwarz=1     Stark:        	---       	Schwarz=1} 0-1